{"text_format":"3","workbook":"xlsx","n_sheets":3,"sheets":["Лист1","Лист2","Лист3"],"read":"whole","date_system":"1900"}

{"sheet":"Лист1","index":0,"n_rows":100,"n_cols":12,"rows_kept":100,"merged":[[5,3,5,8],[6,2,6,9],[7,2,7,9],[8,3,8,5],[42,0,42,11],[80,0,80,11],[87,0,87,11]]}
[{"$nulls":6},"\"УТВЕРЖДАЮ\""]
[{"$nulls":6},"Директор МБУ ДО"]
[{"$nulls":6},"\"Центр детского творчества\""]
[{"$nulls":6},"_____________Г.В.Мельникова"]
[]
[{"$nulls":3},"Учебный план на 2016-2017 учебный год"]
[null,null,"Муниципального бюджетного учреждения дополнительного образования"]
[null,null,"\"Центр детского творчества\" Нурлатского муниципального района РТ"]
["№","Название объединения","ФИО педагога","        Кол-во часов",null,null,"Всего групп",{"$nulls":3},"Кол-во детей","Общее количество часов"]
[{"$nulls":3},"1-4кл.","5-9кл.","10-11кл.",null,"1год обуч","2 год обуч.","3 год обуч"]
[null,"                                        Художественно-эстетическое"]
[1,"Изодеятельность","Богданова Н.И.",24,4,null,7,5,2,null,105,28]
[2,"Вокальный","Смакова Р.Ф.",20,4,4,7,1,2,4,105,28]
[3,"Игрушки своими руками","Карымова А.С.",8,4,null,3,2,1,null,45,12]
[4,"Бисероплетение","Кротова М.И.",28,null,null,7,7,null,null,105,28]
[5,"Вокальный ансамбль","Нигматуллина М.Я.",20,8,null,7,4,2,1,105,28]
[6,"Умелые руки","Галяутдинова О.А.",null,4,null,1,null,1,null,15,4]
[7,"Родные мотивы","Гаврилова М.Г.",4,4,null,2,1,1,null,30,8]
[8,"Флористика","Рассадина Е.С.",4,null,null,1,null,1,null,15,4]
[9,"Танцевальный","Ефремова О.В.",4,4,null,2,1,1,null,30,8]
[10,"Рукодельница","Горшкова Ю.Д.",null,4,null,1,null,1,null,15,4]
[11,"Народные промыслы","Рафикова Г.Л.",null,4,null,1,null,1,null,15,4]
[12,"Умелые руки","Гиматова Ч.Ш.",null,4,null,1,null,1,null,15,4]
[13,"Мягкая игрушка","Трегубенко Т.Г.",null,4,null,1,null,1,null,15,4]
[14,"Изодеятельность","Фадеева И.П.",null,4,null,1,null,1,null,15,4]
[15,"Умелые руки","Садыкова А.И.",null,4,null,1,null,1,null,15,4]
[16,"Чувашская национальная вышивка","Сандрюхина С.А.",null,4,null,1,null,null,1,15,4]
[17,"Ритмика","Мельникова Г.В.",8,null,null,2,null,2,null,30,8]
[18,"Веселые каблучки","Аглиуллина Г.А.",4,null,null,1,null,1,null,15,4]
[19,"веселые нотки","Осипова С.Н.",4,null,null,1,null,1,null,15,4]
[20,"Драматический театр","Черепанова Е.Н.",null,4,null,1,null,1,null,15,4]
[21,"умелые руки","Живодерова Л.А.",null,4,null,1,null,1,null,15,4]
[22,"вязание","Валиахметова Р.Х.",4,null,null,1,null,1,null,15,4]
[23,"тестопластика","Кузьмина Л.И.",null,4,null,1,null,1,null,15,4]
[24,"танцевальный","Зайцева О.В.",null,4,null,1,null,1,null,15,4]
[25,"Изодеятельность","Аскарова Л.М.",null,4,null,1,null,1,null,15,4]
[26,"Бисероплетение","Михайлова Т.Н.",4,null,null,1,null,1,null,15,4]
[27,"Театральный","Сороколетова Т.С.",null,4,null,1,null,1,null,15,4]
[28,"Умелые руки","Максюткина Д.В.",4,null,null,1,1,null,null,15,4]
[29,"Умелые руки","Соловьева О.А.",4,null,null,1,1,null,null,15,4]
[30,"ИЗО Затейник","Мусина Т.Г.",8,null,null,2,2,null,null,30,8]
[null,"всего ",null,{"$f":"SUM(D12:D41)","v":152},84,4,60,25,29,6,900,240]
["Научно-техническое"]
[31,"Столярное дело","Курамшин Р.Х.",null,4,null,1,1,null,null,15,4]
[32,"Столярное дело","Шартынов С.А.",4,16,null,5,1,4,null,75,20]
[33,"Столярное дело","Гималетдинов Р.Р.",null,4,null,1,null,1,null,15,4]
[34,"Юный техник","Мазилкина Л.П.",null,4,null,1,1,null,null,15,4]
[35,"Робототехника","Фадькин А.В.",null,8,null,2,null,1,1,30,8]
[36,"Столярное дело","Михайлов Ю.Г.",null,4,null,1,null,1,null,15,4]
[37,"Легоконструирование","Нагуманова Л.А.",4,null,null,1,null,1,null,15,4]
[38,"Судомоделирование","Шамсутдинова Л.А.",null,4,null,1,null,1,null,15,4]
[39,"моделирование","Мингазетдинов С.Н.",null,4,null,1,null,1,null,15,4]
[40,"Легоконструирование","Чеботарева Н.В.",4,null,null,1,null,1,null,15,4]
[41,"Юный вебмастер","Бикинеев Р.Н.",null,4,null,1,null,1,null,15,4]
[42,"Инфознайка","Фатхутдинова А.А.",null,4,null,1,1,null,null,15,4]
[43,"Робототехника","Сагирова Г.Р.",null,4,null,1,null,1,null,15,4]
[44,"Самоделкины","Петрова Н.А.",4,null,null,1,{"$nulls":3},15,4]
[45,"авиамоделирование","Сазанова Н.Е.",4,null,null,1,null,1,null,15,4]
[46,"Легоконструирование","Белова С.Ф.",4,null,null,1,1,null,null,15,4]
[47,"страна мастеров","Хуснутдинов И.М.",null,4,null,1,1,null,null,15,4]
[48,"Техническое моделирование","Абдрахманов Р.А.",null,4,null,1,null,1,null,15,4]
[49,"Столярное дело","Жданов А.В.",null,4,null,1,null,1,null,15,4]
[50,"Столярное дело","Багаев Н.Н.",null,4,null,1,null,1,null,15,4]
[51,"Техническое моделирование","Миронов Ф.Н.",null,4,null,1,null,1,null,15,4]
[52,"Столярное дело","Платонов П.П.",null,4,null,1,null,1,null,15,4]
[53,"Техническое моделирование","Красников В.А.",null,4,null,1,null,1,null,15,4]
[54,"Легоконструирование","Алексеева Н.Г.",4,null,null,1,null,1,null,15,4]
[55,"Узоры на дереве","Домаркас О.А.",null,4,null,1,1,null,null,15,4]
[56,"Начально-техническое моделирование","Демьянова С.Н.",4,null,null,1,1,null,null,15,4]
[57,"3-Д моделирование","Сафиуллина Р.А.",null,4,null,1,1,null,null,15,4]
[58,"Роботехника","Светкина Л.Г.",null,4,null,1,1,null,null,15,4]
[59,"Столярное дело","Краснов А.К.",4,null,null,1,null,2,null,15,4]
[60,"информатика","Семенов С.М.",null,null,4,1,1,null,null,15,4]
[null,"всего ",null,{"$f":"SUM(D44:D73)","v":36},100,4,35,11,23,1,{"$f":"SUM(K44:K73)","v":525},{"$f":"SUM(L44:L73)","v":140}]
[null,"туристко-краеведческое"]
[61,"Краеведение","Тимербулатов И.Г.",null,4,null,1,null,1,null,15,4]
[62,"краеведение","Гилязетдинова Г.Г.",null,4,null,1,null,1,null,15,4]
[63,"Патриот","Гималетдинов Р.Р.",null,4,null,1,null,1,null,15,4]
[64,"Поисковый клуб","Малыгин В.С.",null,8,null,2,null,2,null,30,8]
[null,"всего ",null,0,{"$f":"SUM(E76:E79)","v":20},{"$f":"SUM(F76:F79)","v":0},{"$f":"SUM(G76:G79)","v":5},{"$f":"SUM(H76:H79)","v":0},{"$f":"SUM(I76:I79)","v":5},null,{"$f":"SUM(K76:K79)","v":75},{"$f":"SUM(L76:L79)","v":20}]
["естественно -научное"]
[65,"Юный геолог","Мусина Р.И.",null,4,null,1,1,null,null,15,4]
[66,"Юный эколог","Сидорова Е.И.",null,4,null,1,1,null,null,15,4]
[67,"Юный эколог","Маринина И.И.",null,null,4,1,1,null,null,15,4]
[68,"Юный эколог","Соловьева  И.П.",null,4,null,1,1,null,null,15,4]
[69,"Юннат","Сиразетдинова Г.Х.",null,4,null,1,1,null,null,15,4]
[null,"всего ",null,0,{"$f":"SUM(E82:E86)","v":16},{"$f":"SUM(F82:F86)","v":4},{"$f":"SUM(G82:G86)","v":5},{"$f":"SUM(H82:H86)","v":5},{"$f":"SUM(I82:I86)","v":0},null,{"$f":"SUM(K82:K86)","v":75},{"$f":"SUM(L82:L86)","v":20}]
["Социально-педагогическое"]
[70,"Детская городская дума","Гатина Р.М.",null,null,4,1,1,null,null,15,4]
[71,"Школа лидера","Салахова А.Г.",null,4,null,1,1,null,null,15,4]
[72,"Юный журналист","Никифорова М.В.",null,null,4,1,1,null,null,15,4]
[73,"Клуб старшеклассников","Газизова Г.С.",null,null,4,1,1,null,null,15,4]
[74,"Забавный английский","Махмутова Э.М.",16,4,null,5,2,3,null,75,20]
[75,"Новое поколение","Мухаметова М.И.",null,8,null,2,1,1,null,30,8]
[76,"Забавный английский","Михайлова Т.Н.",8,null,null,2,2,null,null,30,8]
[77,"Юный журналист","Кузьмина Т.Э.",null,4,null,1,1,null,null,15,4]
[78,"ЮИД","Галямова Г.И.",4,null,null,1,1,null,null,15,4]
[null,"всего",null,{"$f":"SUM(D89:D97)","v":28},20,12,15,11,4,null,{"$f":"SUM(K89:K97)","v":225},{"$f":"SUM(L89:L97)","v":60}]
[]
[null,"итого",{"$nulls":4},120,{"$nulls":3},1800,480]

{"sheet":"Лист2","index":1,"n_rows":0,"n_cols":0,"rows_kept":0}

{"sheet":"Лист3","index":2,"n_rows":0,"n_cols":0,"rows_kept":0}